fUSD/lending_fUSD_20250216
["ID","MTS","AMOUNT","RATE_DAILY","PERIOD"]
[353220246,1739667035907,-500.0,0.00010958,2]
[353220247,1739667035917,-870.58,0.00010958,2]
[353220248,1739667035926,-847.62,0.00010958,2]
[353220249,1739667035936,-1317.26,0.00010958,2]
[353220250,1739667035945,-500.0,0.00010958,2]
[353220251,1739667035955,-1137.53,0.00010958,2]
[353220252,1739667035966,-500.0,0.00010958,2]
[353220253,1739667035975,-500.0,0.00010958,2]
[353220254,1739667035985,-972.15,0.00010958,2]
[353220255,1739667035994,-500.0,0.00010958,2]
[353220256,1739667036003,-500.0,0.00010958,2]
[353220257,1739667036013,-621.92,0.00010958,2]
[353220258,1739667036022,-500.0,0.00010958,2]
[353220259,1739667036031,-1271.5,0.00010958,2]
[353220260,1739667036040,-1072.23,0.00010958,2]
[353220261,1739667036050,-500.0,0.00010958,2]
[353220262,1739667036059,-500.0,0.00010958,2]
[353220263,1739667036068,-500.0,0.00010958,2]
[353220264,1739667036077,-1017.12,0.00010958,2]
[353220265,1739667036087,-500.0,0.00010958,2]
[353220266,1739667036096,-500.0,0.00010958,2]
[353220267,1739667036106,-500.0,0.00010958,2]
[353220268,1739667036115,-500.0,0.00010958,2]
[353220269,1739667036124,-500.0,0.00010958,2]
[353220270,1739667036133,-1818.25,0.00010958,2]
[353220271,1739667036142,-500.0,0.00010958,2]
[353220272,1739667036152,-2270.3,0.00010958,2]
[353220273,1739667036161,-3158.44,0.00010958,2]
[353220274,1739667036170,-500.0,0.00010958,2]
[353220275,1739667036180,-1581.5,0.00010958,2]
[353220276,1739667036190,-500.0,0.00010958,2]
[353220277,1739667036199,-500.0,0.00010958,2]
[353220278,1739667036209,-500.0,0.00010958,2]
[353220279,1739667036219,-1845.05,0.00010958,2]
[353220280,1739667036232,-620.84210723,0.00010958,2]
[353220281,1739667036262,-436.38789277,0.00010958,2]
[353220282,1739667036273,-500.0,0.00010958,2]
[353220283,1739667036282,-502.30776047,0.00010958,2]
[353220284,1739667036292,-534.56,0.00010958,2]
[353220285,1739667036303,-500.0,0.00010958,2]
[353220286,1739667036313,-500.0,0.00010958,2]
[353220287,1739667036322,-500.0,0.00010958,2]
[353220288,1739667036331,-536.37,0.00010958,2]
[353220289,1739667036341,-500.0,0.00010958,2]
[353220290,1739667036350,-500.0,0.00010958,2]
[353220291,1739667036360,-774.71,0.00010958,2]
[353220292,1739667036370,-640.81,0.00010958,2]
[353220293,1739667036382,-1075.50484187,0.00010958,2]
[353220294,1739667036395,-629.93515813,0.00010958,2]
[353220295,1739667036404,-1381.45,0.00010958,2]
[353220296,1739667036414,-500.0,0.00010958,2]
[353220297,1739667036423,-500.0,0.00010958,2]
[353220298,1739667036433,-707.62,0.00010958,2]
[353220299,1739667036442,-500.0,0.00010958,2]
[353220300,1739667036452,-409.1702558,0.00010958,2]
[353220301,1739667036463,-90.8297442,0.00010958,2]
[353220302,1739667036473,-500.0,0.00010958,2]
[353220303,1739667036483,-1186.97606342,0.00010958,2]
[353220304,1739667036495,-94.59393658,0.00010958,2]
[353220305,1739667036504,-718.27,0.00010958,2]
[353220306,1739667036514,-634.21,0.00010958,2]
[353220307,1739667036523,-500.0,0.00010958,2]
[353220308,1739667036532,-500.0,0.00010958,2]
[353220309,1739667036542,-1261.47,0.00010958,2]
[353220310,1739667036551,-800.33,0.00010958,2]
[353220311,1739667036560,-500.0,0.00010958,2]
[353220312,1739667036570,-369.98206342,0.00010958,2]
[353220313,1739667036588,-317.91128112,0.00010958,2]
[353220319,1739667038221,-209.37692604,0.000109,2]
[353220320,1739667038231,-198.58665546,0.00010958,2]
[353220321,1739667038243,-500.0,0.00010958,2]
[353220322,1739667038252,-430.39425977,0.00010958,2]
[353220323,1739667038261,-1176.89,0.00010958,2]
[353220324,1739667038271,-500.0,0.00010958,2]
[353220325,1739667038279,-500.0,0.00010958,2]
[353220326,1739667038289,-1161.32,0.00010958,2]
[353220327,1739667038298,-500.0,0.00010958,2]
[353220328,1739667038307,-500.0,0.00010958,2]
[353220329,1739667038316,-358.82156242,0.00010958,2]
[353220330,1739667038554,-141.17843758,0.00010958,2]
[353220331,1739667038563,-4000.0,0.00010958,2]
[353220332,1739667038572,-500.0,0.00010958,2]
[353220333,1739667038581,-931.64,0.00010958,2]
[353220334,1739667038590,-500.0,0.00010958,2]
[353220335,1739667038600,-500.0,0.00010958,2]
[353220336,1739667038609,-500.0,0.00010958,2]
[353220337,1739667038619,-1100.62,0.00010958,2]
[353220339,1739667038628,-500.0,0.00010958,2]
[353220341,1739667038638,-1088.21,0.00010958,2]
[353220343,1739667038647,-500.0,0.00010958,2]
[353220345,1739667038655,-500.0,0.00010958,2]
[353220347,1739667038664,-543.91,0.00010958,2]
[353220349,1739667038674,-1092.06,0.00010958,2]
[353220350,1739667038683,-564.52,0.00010958,2]
[353220352,1739667038692,-500.0,0.00010958,2]
[353220355,1739667038702,-500.0,0.00010958,2]
[353220357,1739667038712,-1292.05,0.00010958,2]
[353220358,1739667038721,-1109.01,0.00010958,2]
[353220360,1739667038731,-2650.03,0.00010958,2]
[353220362,1739667038740,-500.0,0.00010958,2]
[353220364,1739667038750,-500.0,0.00010958,2]
[353220366,1739667038759,-1318.86,0.00010958,2]
[353220368,1739667038768,-243.37106499,0.00010958,2]
[353220385,1739667040334,-256.62893501,0.00010958,2]
[353220386,1739667040344,-130.66506499,0.00010958,2]
[353220387,1739667040389,-1130.67493501,0.00010958,2]
[353220388,1739667040398,-500.0,0.00010958,2]
[353220389,1739667040407,-500.0,0.00010958,2]
[353220390,1739667040417,-889.16,0.00010958,2]
[353220391,1739667040426,-586.69,0.00010958,2]
[353220392,1739667040435,-2731.37,0.00010958,2]
[353220393,1739667040445,-500.0,0.00010958,2]
[353220394,1739667040455,-1088.62,0.00010958,2]
[353220395,1739667040465,-4199.88276783,0.00010958,2]
[353220396,1739667040477,-603.21723217,0.00010958,2]
[353220397,1739667040487,-571.06,0.00010958,2]
[353220398,1739667040496,-500.0,0.00010958,2]
[353220400,1739667040505,-629.22,0.00010958,2]
[353220402,1739667040515,-954.89,0.00010958,2]
[353220404,1739667040524,-1226.81,0.00010958,2]
[353220406,1739667040533,-500.0,0.00010958,2]
[353220408,1739667040543,-500.0,0.00010958,2]
[353220410,1739667040552,-4251.27,0.00010958,2]
[353220412,1739667040561,-1212.01,0.00010958,2]
[353220414,1739667040570,-1030.0,0.00010958,2]
[353220416,1739667040580,-500.0,0.00010958,2]
[353220417,1739667040590,-1212.05,0.00010958,2]
[353220419,1739667040599,-500.0,0.00010958,2]
[353220421,1739667040609,-500.0,0.00010958,2]
[353220423,1739667040618,-1305.3,0.00010958,2]
[353220425,1739667040628,-966.53,0.00010958,2]
[353220427,1739667040637,-849.52,0.00010958,2]
[353220429,1739667040646,-602.04,0.00010958,2]
[353220431,1739667040655,-1959.99,0.00010958,2]
[353220433,1739667040664,-500.0,0.00010958,2]
[353220435,1739667040673,-500.0,0.00010958,2]
[353220438,1739667040687,-500.0,0.00010958,2]
[353220440,1739667040696,-860.38,0.00010958,2]
[353220442,1739667040706,-500.0,0.00010958,2]
[353220444,1739667040715,-1110.59,0.00010958,2]
[353220446,1739667040724,-500.0,0.00010958,2]
[353220448,1739667040733,-995.81,0.00010958,2]
[353220450,1739667040743,-500.0,0.00010958,2]
[353220452,1739667040752,-866.95,0.00010958,2]
[353220454,1739667040762,-500.0,0.00010958,2]
[353220456,1739667040771,-1142.46276782,0.00010958,2]
[353220676,1739667043392,-621.15723218,0.00010958,2]
[353220677,1739667043403,-566.6,0.00010958,2]
[353220678,1739667043413,-500.0,0.00010958,2]
[353220679,1739667043423,-1047.14276782,0.00010958,2]
[353220680,1739667043442,-2010.44552096,0.00010958,2]
[353220687,1739667046295,-64.14171122,0.00010958,2]
[353220688,1739667046304,-373.21,0.00010958,2]
[353220689,1739667046314,-500.0,0.00010958,2]
[353220690,1739667046325,-302.45356116,0.00010958,2]
[353220691,1739667046340,-197.54643884,0.00010958,2]
[353220692,1739667046349,-458.19467269,0.00010958,2]
[353220693,1739667046362,-41.80532731,0.00010958,2]
[353220694,1739667046371,-429.54116722,0.00010958,2]
[353220695,1739667046382,-616.0,0.00010958,2]
[353220696,1739667046525,-422.62680914,0.00010958,2]
[353220709,1739667048744,162.0,5e-05,120]
[353220715,1739667362034,200.0,0.0002,120]
[353220724,1739667999316,19234.36493649,9e-05,14]
[353220729,1739668232360,-334.908017,8.973e-05,2]
[353220730,1739668232372,-5745.68982827,8.973e-05,2]
[353220732,1739668232418,-287.680003,8.973e-05,2]
[353220733,1739668232588,-867.53675173,8.973e-05,2]
[353220734,1739668232598,-150.0,8.999e-05,2]
[353220735,1739668232607,-300.0,8.999e-05,2]
[353220736,1739668232616,-303.94998102,9e-05,14]
[353220737,1739668232761,-20422.63338927,9e-05,14]
[353220827,1739668238332,-17634.8498427,9e-05,14]
[353220828,1739668238400,-18005.72566929,9e-05,14]
[353220829,1739668238461,-482.5873529,9e-05,14]
[353220831,1739668240316,-2015.34437621,9e-05,14]
[353220832,1739668240477,-5209.945048,9e-05,14]
[353220833,1739668240488,-801.81421915,9e-05,14]
[353220834,1739668240500,-4643.78518497,9e-05,14]
[353220835,1739668240510,-509.12662764,9.041e-05,2]
[353220836,1739668240519,-176.81,9.041e-05,2]
[353220837,1739668240528,-586.89,9.059e-05,2]
[353220838,1739668240537,-200.0,9.071e-05,2]
[353220839,1739668240546,-412.45,9.08e-05,2]
[353220840,1739668240556,-1719.67,9.088e-05,2]
[353220841,1739668240566,-8263.28,9.169e-05,2]
[353220842,1739668240577,-200.0,9.432e-05,2]
[353220843,1739668240587,-1317.65,9.67e-05,2]
[353220844,1739668240597,-150.99,9.67e-05,2]
[353220845,1739668240607,-150.99,9.67e-05,2]
[353220846,1739668240616,-299.99,9.67e-05,2]
[353220847,1739668240627,-6882.96,9.67e-05,2]
[353220848,1739668240637,-1010.87,9.67e-05,2]
[353220849,1739668240647,-4316.95,9.67e-05,2]
[353220850,1739668240657,-7916.73,9.67e-05,2]
[353220851,1739668240666,-1051.26,9.7e-05,2]
[353220852,1739668240676,-1051.26,9.703e-05,2]
[353220853,1739668240685,-1000.0,9.704e-05,2]
[353220854,1739668240694,-1051.26,9.705e-05,2]
[353220855,1739668240703,-1051.26,9.708e-05,2]
[353220856,1739668240713,-1051.26,9.71e-05,2]
[353220857,1739668240722,-1051.26,9.713e-05,2]
[353220858,1739668240731,-1051.26,9.715e-05,2]
[353220859,1739668240740,-1051.26,9.718e-05,2]
[353220860,1739668240749,-1051.26,9.72e-05,2]
[353220861,1739668240758,-1051.26,9.723e-05,2]
[353220862,1739668240767,-1051.26,9.726e-05,2]
[353220863,1739668240778,-1051.26,9.728e-05,2]
[353220864,1739668240787,-1051.26,9.731e-05,2]
[353220865,1739668240797,-1051.26,9.733e-05,2]
[353220866,1739668240807,-1051.26,9.736e-05,2]
[353220867,1739668240816,-200.0,9.736e-05,2]
[353220868,1739668240825,-1051.26,9.738e-05,2]
[353220869,1739668240835,-1051.26,9.741e-05,2]
[353220870,1739668240844,-1051.26,9.743e-05,2]
[353220871,1739668240855,-1051.26,9.746e-05,2]
[353220872,1739668240866,-1852.42,9.746e-05,2]
[353220873,1739668241071,-1051.26,9.748e-05,2]
[353220874,1739668241081,-641.39,9.752e-05,2]
[353220875,1739668241091,-2000.0,9.752e-05,2]
[353220876,1739668241101,-200.0,9.809e-05,2]
[353220877,1739668241111,-420.0,9.899e-05,2]
[353220878,1739668241121,-100000.0,0.0001,7]
[353220879,1739668241130,-209.37692604,0.0001,2]
[353220880,1739668241142,-209.37692604,0.0001,2]
[353220881,1739668241152,-700.0,0.00010058,2]
[353220882,1739668241162,-800.0,0.00010058,2]
[353220883,1739668241171,-209.37692604,0.00010073,2]
[353220884,1739668241181,-194.65,0.00010074,2]
[353220885,1739668241190,-163.01,0.00010137,2]
[353220886,1739668241199,-586.89,0.00010191,2]
[353220887,1739668241208,-200.0,0.000102,3]
[353220888,1739668241217,-500.0,0.000103,3]
[353220889,1739668241227,-800.0,0.000104,3]
[353220890,1739668241236,-183.49,0.00010491,2]
[353220891,1739668241245,-1100.0,0.000105,3]
[353220892,1739668241255,-1400.0,0.000106,3]
[353220893,1739668241264,-209.37692604,0.00010609,2]
[353220894,1739668241274,-200.0,0.000107,3]
[353220895,1739668241283,-150.0,0.00010758,2]
[353220896,1739668241292,-150.0,0.00010785,2]
[353220897,1739668241302,-200.0,0.000108,3]
[353220898,1739668241312,-150.0,0.00010803,2]
[353220899,1739668241322,-587.0,0.00010889,2]
[353220900,1739668241333,-200.0,0.000109,2]
[353220901,1739668241343,-200.0,0.000109,3]
[353220902,1739668241353,-200.0,0.000109,3]
[353220903,1739668241363,-1000.0,0.00010917,2]
[353220904,1739668241372,-1000.0,0.00010931,2]
[353220905,1739668241381,-150.0,0.00010952,2]
[353220906,1739668241390,-859.87342206,0.00010953,2]
[353220907,1739668241403,-140.12657794,0.00010953,2]
[353220908,1739668241412,-155.56582411,0.00010958,2]
[353220909,1739668241425,-344.43417589,0.00010958,2]
[353220910,1739668241434,-631.92582411,0.00010958,2]
[353220918,1739668243532,-224.17132146,8.999e-05,2]
[353220919,1739668243541,-81.82867854,0.00010958,2]
[353220927,1739668246256,-92.11651835,0.00010958,2]
[353220929,1739668246266,-200.0,0.00010958,2]
[353220930,1739668246276,-272.9771162,0.00010958,2]
[353220931,1739668246374,-839.3222568,0.00010958,2]
[353220932,1739668246384,-500.0,0.00010958,2]
[353220933,1739668246393,-500.0,0.00010958,2]
[353220934,1739668246403,-500.0,0.00010958,2]
[353220935,1739668246412,-207.31498972,0.00010958,2]
[353220936,1739668246422,-200.10124612,0.00010958,2]
[353220937,1739668246642,-299.89875388,0.00010958,2]
[353220938,1739668246652,-78.97064612,0.00010958,2]
[353220939,1739668246663,-421.02935388,0.00010958,2]
[353220940,1739668246673,-500.0,0.00010958,2]
[353220941,1739668246682,-500.0,0.00010958,2]
[353220942,1739668246691,-500.0,0.00010958,2]
[353220943,1739668246701,-500.0,0.00010958,2]
[353220944,1739668246711,-500.0,0.00010958,2]
[353220945,1739668246721,-500.0,0.00010958,2]
[353220946,1739668246730,-500.0,0.00010958,2]
[353220947,1739668246744,-273.13347547,0.00010958,2]
[353220948,1739668246778,-226.86652453,0.00010958,2]
[353220949,1739668246788,-217.25347547,0.00010958,2]
[353220950,1739668310206,623.83,8.219e-05,2]
[353220952,1739668578506,165.36,7.999e-05,2]
[353220953,1739668957668,458.0,0.0002,120]
[353220963,1739669292926,25349.9747747,8.8e-05,2]
[353220985,1739669431559,-204.0,8.851e-05,2]
[353220986,1739669431569,-500.0,9.202e-05,2]
[353220987,1739669431579,-171.33,9.302e-05,2]
[353220988,1739669431588,-2000.0,9.394e-05,2]
[353220989,1739669431598,-200.0,9.455e-05,2]
[353220990,1739669431607,-383.63097004,9.455e-05,2]
[353220991,1739669431617,-166.66,9.581e-05,2]
[353220992,1739669431626,-200.0,9.736e-05,2]
[353220993,1739669431636,-212.29,9.827e-05,2]
[353220994,1739669431645,-206.22,9.876e-05,2]
[353220995,1739669431654,-150.99,9.876e-05,2]
[353220996,1739669431663,-150.0,9.912e-05,2]
[353220997,1739669431673,-150.0,9.912e-05,2]
[353220998,1739669431682,-150.0,9.912e-05,2]
[353220999,1739669431692,-150.0,9.912e-05,2]
[353221000,1739669431701,-299.99,9.912e-05,2]
[353221001,1739669431710,-39.6496418,9.919e-05,2]
[353221002,1739669431729,-4055.64026813,9.919e-05,2]
[353221003,1739669431738,-193.88,9.979e-05,2]
[353221004,1739669431747,-200.0,9.984e-05,2]
[353221005,1739669431757,-150.99,9.984e-05,2]
[353221006,1739669431766,-250.0,9.986e-05,2]
[353221007,1739669431776,-1000.0,9.989e-05,2]
[353221008,1739669431785,-1040.75692954,9.996e-05,2]
[353221009,1739669431796,-573.51186156,9.996e-05,2]
[353221010,1739669431807,-2000.0,9.996e-05,2]
[353221011,1739669431819,-316.52362598,9.996e-05,2]
[353221012,1739669431829,-330.55581015,9.996e-05,2]
[353221017,1739669432022,-3900.0,9.996e-05,2]
[353221018,1739669432033,-1573.88163265,9.996e-05,2]
[353221020,1739669432058,-1170.920517,9.996e-05,2]
[353221021,1739669432082,-1050.11323801,9.996e-05,2]
[353221073,1739669437642,-1246.61,9.996e-05,2]
[353221074,1739669437654,-903.190002,9.996e-05,2]
[353221078,1739669439723,-294.5830712,9.996e-05,2]
[353221079,1739669439735,-2076.06331191,9.996e-05,2]
[353221080,1739669439745,-1970.3305105,0.0001,2]
[353221081,1739669439756,-8471.56575124,0.0001,2]
[353221082,1739669439951,-357.38789991,0.0001,2]
[353221083,1739669439963,-1260.3,0.0001,2]
[353221097,1739669442651,-567.33945125,0.0001,2]
[353221098,1739669442727,-11667.2041683,0.0001,2]
[353221099,1739669442927,-2538.26428632,0.0001,2]
[353221100,1739669442938,-54936.4053192,0.0001,2]
[353221103,1739669445643,-104420.35385569,0.0001,2]
[353221104,1739669445654,-51560.77942301,0.0001,2]
[353221105,1739669445883,-2519.0000009,0.0001,2]
[353221106,1739669445893,-3999.42611812,0.0001,2]
[353221108,1739669498404,150.0,0.0002,120]
[353221109,1739669548250,635.51,8.219e-05,2]
[353221111,1739670628883,603.73,8.219e-05,2]
[353221112,1739670631800,-8115.4446,8.973e-05,2]
[353221113,1739670631809,-163.33,9.598e-05,2]
[353221114,1739670631820,-157.56034393,9.598e-05,2]
[353221115,1739670631829,-206.22,9.602e-05,2]
[353221116,1739670631841,-352.13,9.602e-05,2]
[353221117,1739670631851,-1000.0,9.661e-05,2]
[353221118,1739670631860,-200.0,9.736e-05,2]
[353221119,1739670631870,-1071.76,9.8e-05,2]
[353221120,1739670631880,-150.0,9.838e-05,2]
[353221121,1739670631892,-150.0,9.838e-05,2]
[353221122,1739670631901,-150.0,9.838e-05,2]
[353221123,1739670631911,-150.90633389,9.838e-05,2]
[353221124,1739670631920,-31623.55,9.838e-05,2]
[353221125,1739670631931,-150.0,9.938e-05,2]
[353221126,1739670631940,-299.99,9.938e-05,2]
[353221127,1739670631949,-150.99,9.938e-05,2]
[353221128,1739670631959,-505.21342937,9.999e-05,2]
[353221129,1739670631968,-500.0,9.999e-05,2]
[353221130,1739670631977,-500.0,9.999e-05,2]
[353221131,1739670631987,-500.0,9.999e-05,2]
[353221132,1739670631996,-500.0,9.999e-05,2]
[353221133,1739670632006,-574.06098241,9.999e-05,2]
[353221134,1739670632016,-24892.80108598,0.0001,2]
[353221135,1739670632027,-628408.0160996,0.0001,2]
[353221136,1739670632038,-295996.40752344,0.0001,2]
[353221137,1739670632050,-145725.16457164,0.0001,2]
[353221144,1739670637645,-889.28858656,0.0001,2]
[353221145,1739670637657,-3090.78288953,0.0001,2]
[353221146,1739670637668,-451.16432,0.0001,2]
[353221147,1739670637678,-809.98594867,0.0001,2]
[353221148,1739670637689,-690.02331273,0.0001,2]
[353221149,1739670637702,-862.24427429,0.0001,2]
[353221150,1739670637750,-28850.0,0.0001,2]
[353221151,1739670637761,-994.60610657,0.0001,2]
[353221152,1739670637821,-1952.01812915,0.0001,2]
[353221153,1739670637832,-1356.74108651,0.0001,2]
[353221154,1739670637846,-2258.99168339,0.0001,2]
[353221155,1739670637858,-572.12511481,0.0001,2]
[353221156,1739670637868,-5051.91947064,0.0001,2]
[353221157,1739670637879,-274.176,0.0001,2]
[353221158,1739670637893,-7251.71597944,0.0001,2]
[353221159,1739670637904,-2729.40718883,0.0001,2]
[353221160,1739670637917,-1962.58,0.0001,2]
[353221161,1739670637956,-9823.98203823,0.0001,2]
[353221162,1739670637967,-352.10604785,0.0001,2]
[353221163,1739670639969,-819.65,0.0001,2]
[353221164,1739670639981,-31041.38929713,0.0001,2]
[353221165,1739670640067,-29643.33930656,0.0001,2]
[353221166,1739670640079,-21057.89735241,0.0001,2]
[353221198,1739670645750,-40121.76922668,0.0001,2]
[353221199,1739670645831,-11899.13266237,0.0001,2]
[353221200,1739670645844,-8910.64716388,0.0001,2]
[353221202,1739670872425,553.16742177,0.000204,120]
[353221217,1739671794055,432.021611,0.0002,120]
[353221218,1739671794441,573.54,8.219e-05,2]
[353221225,1739671831936,-1000.0,9.616e-05,2]
[353221226,1739671831946,-169.83,9.618e-05,2]
[353221227,1739671831956,-200.0,9.736e-05,2]
[353221228,1739671831966,-150.0,9.912e-05,2]
[353221229,1739671831975,-150.0,9.912e-05,2]
[353221230,1739671831985,-150.0,9.912e-05,2]
[353221231,1739671831994,-1000.0,9.999e-05,2]
[353221232,1739671832003,-1000.0,9.999e-05,2]
[353221233,1739671832012,-190.77761063,9.999e-05,2]
[353221234,1739671832022,-128919.56338594,0.0001,2]
[353221235,1739671832144,-2434.10011288,0.0001,2]
[353221236,1739671832164,-19480.93544224,0.0001,2]
[353221237,1739671832174,-470.78766504,0.0001,2]
[353221238,1739671832183,-10710.05809227,0.0001,2]
[353221239,1739671832193,-4000.0,0.0001,2]
[353221240,1739671832202,-507.6,0.0001,2]
[353221241,1739671832211,-200.0,0.00010019,2]
[353221242,1739671832221,-299.99,0.00010019,2]
[353221243,1739671832231,-150.0,0.00010035,2]
[353221244,1739671832240,-700.0,0.00010058,2]
[353221245,1739671832250,-250.0,0.00010073,2]
[353221246,1739671832259,-483.65,0.00010137,2]
[353221247,1739671832269,-150.0,0.00010157,2]
[353221248,1739671832281,-150.0,0.00010188,2]
[353221249,1739671832290,-1060.0,0.00010208,2]
[353221250,1739671832300,-150.0,0.00010279,2]
[353221251,1739671832309,-429.13347286,0.00010291,2]
[353221252,1739671832318,-440.09,0.000103,2]
[353221253,1739671832327,-150.0,0.00010402,2]
[353221254,1739671832337,-573.54,0.00010458,2]
[353221256,1739671832347,-150.0,0.00010463,2]
[353221258,1739671832356,-150.0,0.00010524,2]
[353221259,1739671832366,-429.13347286,0.00010543,2]
[353221260,1739671832375,-1010.683,0.00010589,2]
[353221261,1739671832384,-3917.0,0.00010589,2]
[353221262,1739671832393,-150.871,0.00010589,2]
[353221263,1739671832402,-3339.92673183,0.00010624,2]
[353221264,1739671832411,-150.0,0.00010647,2]
[353221265,1739671832420,-429.13347286,0.00010731,2]
[353221266,1739671832429,-150.0,0.00010738,2]
[353221267,1739671832439,-1060.0,0.00010745,2]
[353221268,1739671832449,-150.0,0.00010769,2]
[353221269,1739671832458,-352.13,0.00010802,2]
[353221270,1739671832467,-1000.0,0.00010818,2]
[353221272,1739671832477,-169.83,0.0001082,2]
[353221274,1739671832486,-706.89055241,0.00010835,2]
[353221276,1739671832495,-300.64286617,0.0001084,2]
[353221278,1739671832505,-150.0,0.00010863,2]
[353221280,1739671832514,-150.341,0.00010863,2]
[353221282,1739671832523,-150.304,0.00010863,2]
[353221284,1739671832533,-279.995,0.00010863,2]
[353221286,1739671832542,-250.0,0.00010863,2]
[353221287,1739671832552,-158.999,0.00010863,2]
[353221289,1739671832561,-205.96,0.00010863,2]
[353221291,1739671832571,-253.09,0.00010863,2]
[353221293,1739671832581,-272.417,0.00010863,2]
[353221295,1739671832591,-154.913,0.00010863,2]
[353221297,1739671832601,-170.534,0.00010863,2]
[353221299,1739671832610,-1274.0,0.00010863,2]
[353221301,1739671832619,-2026.0,0.00010863,2]
[353221303,1739671832628,-213.504,0.00010863,2]
[353221305,1739671832638,-588.502,0.00010863,2]
[353221307,1739671832647,-639.878,0.00010863,2]
[353221309,1739671832656,-277.898,0.00010863,2]
[353221311,1739671832665,-1788.187,0.00010863,2]
[353221313,1739671832674,-784.0,0.00010863,2]
[353221315,1739671832684,-1266.0,0.00010863,2]
[353221317,1739671832693,-916.412,0.00010863,2]
[353221319,1739671832703,-2957.0,0.00010863,2]
[353221321,1739671832712,-4060.156,0.00010863,2]
[353221323,1739671832722,-540.348,0.00010863,2]
[353221325,1739671832731,-150.0,0.00010891,2]
[353221327,1739671832741,-96784.56699236,0.000109,2]
[353221329,1739671832752,-5110.24358885,0.000109,2]
[353221332,1739671832763,-1972.5999997,0.000109,2]
[353221334,1739671832774,-13080.78915979,0.000109,2]
[353221336,1739671832785,-22780.27281881,0.000109,2]
[353221339,1739671832802,-10753.48564841,0.000109,2]
[353221341,1739671832811,-2002.54,0.000109,2]
[353221342,1739671832819,-209.53266597,0.000109,2]
[353221344,1739671832828,-1174.91127192,0.00010934,2]
[353221346,1739671832838,-174.92930217,0.00010939,2]
[353221348,1739671832847,-678.43529193,0.00010949,2]
[353221350,1739671832856,-322.2485395,0.00010949,2]
[353221352,1739671832865,-286.00677582,0.00010957,2]
[353221354,1739671832874,-151.0,0.00010958,2]
[353221356,1739671832883,-151.707112,0.00010958,2]
[353221358,1739671832892,-337.84797171,0.00010958,2]
[353221360,1739671832901,-500.95970738,0.00010958,2]
[353221362,1739671832910,-500.0,0.00010958,2]
[353221364,1739671832919,-501.39614967,0.00010958,2]
[353221366,1739671832929,-500.70059624,0.00010958,2]
[353221368,1739671832938,-182.83473203,0.00010958,2]
[353221370,1739671832947,-500.0,0.00010958,2]
[353221372,1739671832956,-500.0,0.00010958,2]
[353221374,1739671832965,-557.88532547,0.00010958,2]
[353221376,1739671832974,-500.0,0.00010958,2]
[353221378,1739671832983,-500.0,0.00010958,2]
[353221379,1739671832994,-500.0,0.00010958,2]
[353221381,1739671833004,-500.0,0.00010958,2]
[353221384,1739671833013,-500.0,0.00010958,2]
[353221385,1739671833023,-500.0,0.00010958,2]
[353221388,1739671833033,-500.0,0.00010958,2]
[353221389,1739671833042,-500.0,0.00010958,2]
[353221391,1739671833051,-500.0,0.00010958,2]
[353221392,1739671833060,-504.49427226,0.00010958,2]
[353221393,1739671833069,-500.0,0.00010958,2]
[353221394,1739671833078,-500.0,0.00010958,2]
[353221395,1739671833087,-500.0,0.00010958,2]
[353221396,1739671833097,-500.0,0.00010958,2]
[353221397,1739671833111,-500.0,0.00010958,2]